Cogmind - Beta 16 @@@ ROGUE MODE // 2025.11.12 @ 12:33:58 Player: cptwinky Result: Escaped! Performance ------------- Evolutions (9) 4500 Regions Visited (20) 4000 Robots Destroyed (368) 1840 Value Destroyed (14310) 14310 Prototype IDs (49) 980 Alien Tech Used (0) 0 Bonus (8186) 8186 TOTAL SCORE: 33816 Bonus ------- High Alert Combat Kills 1738 Follower Combat Kills 2992 Network Hubs Disabled 200 Registered with UFD 300 Met Optimus in HQ 500 Built Enhanced Grunts 300 A7 Reached Mainframe 300 Met R17 at Cetus 500 Met R17 at Research 2000 Win 3000 Friendly Fire -3644 Cogmind --------- Core Integrity 1370/1600 Matter 82/300 Energy 575/600 System Corruption 5% Temperature Cool (6) Movement Hovering (66) Location To Epsilon Eridani Parts ------- > --- POWER (3) -------- (None) > --- PROPULSION (8) --- Combat Airjet Combat Gravmag System Improved Antigrav System > --- UTILITY (12) ----- Advanced Heat Sink Advanced Cooling System Large Storage Unit Advanced Energy Well Advanced Signal Interpreter Advanced Target Analyzer Hacking Suite Improved Hacking Suite Advanced Hacking Suite > --- WEAPON (2) ------- Guided EMP Blaster > --- INVENTORY (15) --- Light Quantum Reactor Experimental Terrain Scan Processor Long-range Proton Cannon Heavy Phase Cannon Hypervelocity Mass Driver Mini Smartbomb Launcher Mini Smartbomb Launcher Advanced Remote Datajack Peak State ------------ > --- POWER ------------ Micro Antimatter Reactor Micro Antimatter Reactor Micro Antimatter Reactor > --- PROPULSION ------- Cooled Aerolev Unit Cooled Aerolev Unit Combat Airjet Combat Airjet Combat Airjet Gravmag Array Cooled Gravmag System > --- UTILITY ---------- Advanced Cooling System Large Storage Unit Advanced Energy Well Advanced Signal Interpreter Advanced Transmission Jammer Advanced Reaction Control System Layered Medium Armor Plating Advanced Shield Generator Hacking Suite Improved Hacking Suite Advanced Hacking Suite > --- WEAPON ----------- Heavy Phase Cannon Hypervelocity Mass Driver > --- INVENTORY -------- Light Quantum Reactor Antigrav System Combat Gravmag System Improved Matter Compressor Advanced Sensor Array Experimental Terrain Scan Processor Long-range Proton Cannon Guided EMP Blaster Guided EMP Blaster Mini Smartbomb Launcher Mini Smartbomb Launcher Improved Remote Datajack [Rating: 149] Favorites ----------- Power Improved Ion Engine Engine Improved Ion Engine Power Core Light Fission Core Reactor Micro Antimatter Reactor Propulsion Light Treads Treads Light Treads Wheel Overtuned Huge Scrapsphere Hover Unit Combat Airjet Utility Hacking Suite Device Advanced Cooling System Storage Huge Storage Unit Processor Advanced Signal Interpreter Hackware Hacking Suite Protection Centrium Medium Armor Plating Weapon Improved Light Cannon Energy Gun Beam Rifle Energy Cannon Phase Cannon Ballistic Gun Assault Rifle Ballistic Cannon Improved Light Cannon Launcher Guided EMP Blaster Special Weapon Improved Remote Datajack Impact Weapon Great Maul Special Melee Weapon Datajack Build | -11 -10 -10 -9 -9 -9 -9 -6 -6 -6 -6 -6 -5 -5 -5 -5 -5 -4 -3 -2 -1 ------- Run | Yrd Mat Min Mat Sto Rec Scr Fac Ext Cet Arc Hub Fac Was Fac Upp Upp Fac Res Res Acc Slots Evolved 18 | . . . 2 . . . 6 . . . . 2 . . . . 2 2 2 2 Power 2 | . . . . . . . 1 . . . . . . . . . . . . 1 Propulsion 6 | . . . 1 . . . 1 . . . . 2 . . . . 1 . 1 . Utility 10 | . . . 1 . . . 4 . . . . . . . . . 1 2 1 1 Weapon . | . . . . . . . . . . . . . . . . . . . . . Parts Attached 213 | 6 5 3 22 13 1 6 8 23 10 3 6 41 3 11 1 2 17 14 6 12 Power 30 | 1 . 1 3 1 . . 2 4 1 . 1 8 . 1 . 1 1 2 1 2 Engine 13 | 1 . 1 2 1 . . 2 4 . . . 1 . . . 1 . . . . Core 12 | . . . 1 . . . . . 1 . . 7 . 1 . . 1 1 . . Reactor 5 | . . . . . . . . . . . 1 . . . . . . 1 1 2 Propulsion 36 | 2 . . 6 3 . 2 . 5 1 . . 9 . 2 . . 1 1 1 3 Treads 21 | 2 . . 6 3 . 1 . 4 1 . . 4 . . . . . . . . Leg . | . . . . . . . . . . . . . . . . . . . . . Wheel 2 | . . . . . . 1 . 1 . . . . . . . . . . . . Hover 13 | . . . . . . . . . . . . 5 . 2 . . 1 1 1 3 Flight . | . . . . . . . . . . . . . . . . . . . . . Utility 93 | 1 2 1 6 4 . 3 5 11 5 . 3 17 3 4 . 1 11 9 2 5 Device 45 | . . 1 1 1 . 2 1 9 2 . 1 8 3 . . 1 8 3 . 4 Storage 9 | 1 1 . 1 1 . . 1 . . . . 2 . 1 . . . . 1 . Processor 7 | . . . 2 . . . . . . . . 2 . . . . 2 . . 1 Hackware 16 | . . . . 1 . 1 2 . . . 2 3 . 3 . . 1 2 1 . Protection 16 | . 1 . 2 1 . . 1 2 3 . . 2 . . . . . 4 . . Artifact . | . . . . . . . . . . . . . . . . . . . . . Weapon 54 | 2 3 1 7 5 1 1 1 3 3 3 2 7 . 4 1 . 4 2 2 2 Energy Gun 7 | 1 . . 3 . . . 1 . 1 . . . . . . . 1 . . . Energy Cannon 11 | . . . . 1 . . . 1 . . 1 4 . 1 . . 1 2 . . Ballistic Gun 3 | 1 . . . . . . . . 1 . 1 . . . . . . . . . Ballistic Cannon 16 | . 2 . 3 2 . . . 2 1 1 . 2 . 1 1 . 1 . . . Launcher 8 | . . 1 . 1 . . . . . . . 1 . 2 . . . . 2 1 Special Weapon 5 | . 1 . . 1 . . . . . 1 . . . . . . 1 . . 1 Impact Weapon 2 | . . . 1 . . 1 . . . . . . . . . . . . . . Slashing Weapon . | . . . . . . . . . . . . . . . . . . . . . Piercing Weapon . | . . . . . . . . . . . . . . . . . . . . . Special Melee Weapon 2 | . . . . . 1 . . . . 1 . . . . . . . . . . Unidentified Prototypes 14 | . . . 2 2 . . . . 4 . 1 3 . . . . 1 . . 1 Corrupted Parts 2 | . . . . . . 1 . . . . . . . . . 1 . . . . System Corruption 13 | . . . . . . 3 . . . . . . . . . 10 . . . . Parts Lost 59 | . . 2 6 1 . . . 10 1 . 4 11 . 2 . . 1 . . 21 Power 12 | . . 1 1 . . . . 2 . . 1 2 . 1 . . . . . 4 Propulsion 13 | . . . 1 . . . . 3 . . . 2 . . . . . . . 7 Utility 25 | . . 1 1 1 . . . 4 1 . 2 5 . 1 . . 1 . . 8 Weapon 9 | . . . 3 . . . . 1 . . 1 2 . . . . . . . 2 Highest Loss Streak 9 | . . 2 3 1 . . . 4 1 . 2 5 . 2 . . 1 . . 9 To Critical Strikes 3 | . . . 1 . . . . . . . . . . . . . . . . 2 Average Backups 18 | 3 8 9 14 22 24 22 21 22 22 21 20 22 14 14 14 14 14 13 12 12 Power 1 | . 1 . . 1 1 1 1 . 1 1 . 1 1 . 1 1 . . 1 . Propulsion 2 | 1 2 2 1 3 4 1 . 1 2 3 3 2 3 3 4 4 3 2 1 1 Utility 6 | . . . 2 5 6 8 7 7 6 9 9 9 6 6 3 3 4 5 4 3 Weapon 7 | 1 4 6 9 10 11 9 9 9 10 6 5 6 3 3 5 4 4 4 5 5 Tool/Special . | . . . . . . . . . . . . . . . . . . . . . Unused Backups 52 | . 3 . 8 1 . 14 1 . 2 2 2 9 . 1 1 . 2 . 2 4 Power 5 | . . . . . . 2 . . . . 1 . . . . . . . 1 1 Propulsion 5 | . . . 2 . . 2 . . 1 . . . . . . . . . . . Utility 18 | . . . . . . 4 1 . 1 . . 6 . 1 1 . 2 . . 2 Weapon 24 | . 3 . 6 1 . 6 . . . 2 1 3 . . . . . . 1 1 Tool/Special . | . . . . . . . . . . . . . . . . . . . . . Average Slot Usage (%) 91 | . 91 95 97 99 100 99 98 94 79 80 79 77 88 85 82 82 90 90 93 88 Engine 7 | . 14 14 9 11 11 11 12 12 6 6 6 2 5 1 . . 5 2 . . Core 2 | . . . 1 . . . . . 5 6 3 7 5 6 5 5 5 4 3 . Treads 19 | . 27 28 31 33 33 32 20 22 6 6 6 17 . . . . . . . . Wheel 1 | . . . . . . . 6 1 6 6 6 . . . . . . . . . Hover 6 | . . . . . . . . . . . . . 23 23 29 29 31 28 30 27 Device 8 | . . 5 11 . . . 5 18 13 13 14 6 16 12 16 17 14 13 13 14 Storage 8 | . 14 14 11 11 11 11 6 6 6 6 6 5 5 5 11 11 10 9 8 8 Processor 1 | . . . 3 . . . . . . . . 4 5 5 5 5 5 4 4 5 Hackware 8 | . . . . 10 11 11 19 11 6 6 5 10 5 6 . . 4 7 12 12 Protection 8 | . 6 3 6 10 11 10 12 5 10 13 10 6 5 6 5 5 5 8 8 5 Energy Cannon 2 | . . . . . . . . 5 . . 2 8 11 7 . . 3 2 2 1 Ballistic Cannon 7 | . 18 26 15 21 20 . 12 6 11 7 10 1 . 1 1 . 1 . . . Impact Weapon 1 | . . . . . . 10 . . . . . . . . . . . . . . Special Melee Weapon 1 | . . . . . . 10 . . . 3 . . . . . . . . . . Peak Build Rating 149 | 6 8 9 18 24 20 24 43 59 95 101 103 129 98 97 96 96 114 125 134 149 Average Rating 60 | 5 6 7 14 19 19 19 39 50 81 98 99 114 92 92 91 91 106 118 130 141 On Entrance 63 | . 6 8 9 17 20 19 20 43 56 95 98 102 92 93 94 94 96 109 124 132 Avg Prop Armor Cover (%) 12 | . . . . . . 19 15 10 9 8 8 16 . . . . . . . 3 Naked Turns . | . . . . . . . . . . . . . . . . . . . . . Heaviest Build 151 | 12 30 30 40 99 98 95 112 135 140 144 151 148 66 66 61 61 76 82 80 89 Greatest Support 240 | 40 40 40 60 60 60 60 16 80 20 20 20 240 67 72 64 64 90 77 90 103 Greatest Overweight (x) 7 | . . . . 1 1 5 6 6 6 7 7 7 . 1 . . . 1 . 1 Average Overweight (x) . | . . . . . 1 1 6 2 5 6 6 . . . . . . . . . Largest Inventory Capacity 25 | 8 15 15 15 25 25 25 25 25 25 25 25 25 15 15 15 15 15 15 15 15 Average Capacity 20 | 7 9 15 15 24 25 25 25 25 25 25 25 24 15 15 15 15 15 15 15 15 Most Carried 25 | 5 10 10 15 25 25 25 25 25 25 25 25 25 15 15 15 15 15 15 15 15 Average Carried 19 | 3 8 9 14 22 24 22 22 23 24 24 23 24 14 14 14 14 14 14 13 13 Final Capacity 25 | 8 15 15 15 25 25 25 25 25 25 25 25 15 15 15 15 15 15 15 15 15 Final Carried 25 | 5 10 9 15 24 25 22 25 25 25 25 25 14 15 14 15 14 15 15 15 8 Scrap Suit Usage (%) 5 | . . . . . . . . 25 100 10 . . . . . . . . . . Parts Cannibalized 5 | . . . . . . . . 3 1 1 . . . . . . . . . . Class Distribution -------------------- 40% | Scavenger-Mutant 25% | Commander-Mutant 20% | Mutant 10% | Hacker-Mutant Dominant Class ---------------- Mutant | -10/Materials Mutant | -10/Mines Scavenger-Mutant | -9/Materials Mutant | -9/Storage Commander-Mutant | -9/Recycling Commander-Mutant | -9/Scraptown Scavenger-Mutant | -6/Factory Scavenger-Mutant | -6/Extension Commander-Mutant | -6/Cetus Scavenger-Mutant | -6/Archives Scavenger-Mutant | -6/Hub_04(d) Scavenger-Mutant | -5/Factory Scavenger-Mutant | -5/Waste Scavenger-Mutant | -5/Factory Mutant | -5/Upper Caves Mutant | -5/Upper Caves Scavenger-Mutant | -4/Factory Hacker-Mutant | -3/Research Hacker-Mutant | -2/Research Hacker-Mutant | -1/Access Resources | -11 -10 -10 -9 -9 -9 -9 -6 -6 -6 -6 -6 -5 -5 -5 -5 -5 -4 -3 -2 -1 ----------- Run | Yrd Mat Min Mat Sto Rec Scr Fac Ext Cet Arc Hub Fac Was Fac Upp Upp Fac Res Res Acc Matter Collected 14181 | 264 204 342 668 807 61 106 376 1812 183 306 617 1515 230 414 833 625 1491 588 228 2511 Remotely . | . . . . . . . . . . . . . . . . . . . . . Salvage Created 16074 | 59 443 240 1286 963 103 . 325 1177 77 34 468 3022 270 552 1019 1458 1678 497 127 2276 Parts 778 | 7 43 17 100 51 3 . 16 40 5 7 15 146 4 42 41 41 63 17 9 111 Haulers Intercepted 18 | . 2 . 4 6 . . 1 . . . 1 3 . . . . . . . 1 Recyclers Shooed 19 | . 1 . 1 2 . . . 4 . . . 6 . 1 . . 3 . . 1 Parts Field Recycled 20 | . . . . . . . . 20 . . . . . . . . . . . . Retrieved Matter 97 | . . . . . . . . 97 . . . . . . . . . . . . Parts Self-Destructed 14 | . . . . . . . . . . . . . . . 12 2 . . . . Prevented 62 | . . . . . . . . . . . . . . . 25 37 . . . . Parts Restored . | . . . . . . . . . . . . . . . . . . . . . Kills | -11 -10 -10 -9 -9 -9 -9 -6 -6 -6 -6 -6 -5 -5 -5 -5 -5 -4 -3 -2 -1 ------- Run | Yrd Mat Min Mat Sto Rec Scr Fac Ext Cet Arc Hub Fac Was Fac Upp Upp Fac Res Res Acc Combat Hostiles Destroyed 277 | . 12 12 34 22 2 . 6 20 . . 12 51 1 16 16 21 19 7 5 21 Guns 23 | . 11 . 12 . . . . . . . . . . . . . . . . . Cannons 120 | . 1 8 12 19 2 . 5 13 . . 12 30 1 5 2 . 2 1 . 7 AOE 89 | . . 4 9 3 . . 1 7 . . . 17 . 11 9 9 7 5 5 2 Classes Destroyed 20 | 1 7 2 3 . . . . 1 . . 3 2 1 . . . . . . . Worker 19 | . . 2 2 . . . . . . . . 4 . 2 . . 5 1 . 3 Builder 18 | . 1 1 1 . . . 1 1 . . . 6 . 1 . . 1 . . 5 Tunneler 7 | 3 1 . 2 . . . . . . . . . . . . . . . . 1 Hauler 18 | . 2 . 4 6 . . 1 . . . 1 3 . . . . . . . 1 Recycler 16 | . 1 1 1 2 . . . 3 . . . 3 . 1 . . 2 . . 2 Mechanic 4 | . 1 . 1 1 . . . . . . . 1 . . . . . . . . Operator 8 | . 1 . 1 1 . . . . . 1 . 3 . 1 . . . . . . Watcher 5 | . . . 1 1 . . . 2 . . . . . 1 . . . . . . Swarmer 70 | . 9 3 11 4 . . 1 7 . . . 9 . 12 5 2 . 2 5 . Grunt 112 | . 3 4 16 9 . . 5 3 . . 8 20 . 1 8 11 14 4 . 6 Brawler 6 | . . . 1 . . . . . . . . 1 . . . 4 . . . . Duelist 5 | . . . . . . . . . . . . 1 . 1 . 2 1 . . . Sentry 33 | . . . 6 9 2 . . 8 . . . 3 . 1 1 2 . 1 . . Demolisher 1 | . . . . . . . . . . . 1 . . . . . . . . . Specialist 1 | . . . . . . . . . . . 1 . . . . . . . . . Hunter 20 | . . . . . . . . . . . 2 6 . . . . 2 . . 10 Programmer 21 | . . . . . . . . . . . . 11 . 1 2 . 2 . . 5 Behemoth 2 | . . . . . . . . 2 . . . . . . . . . . . . Compactor 1 | . . . . . . . . . . . . . 1 . . . . . . . Assembled 5 | . . 5 . . . . . . . . . . . . . . . . . . Best Kill Streak 14 | 2 6 4 8 5 1 . 3 5 . 1 4 14 1 9 4 5 7 6 5 8 Combat Bots Only 7 | . 6 3 4 5 1 . 2 4 . . 4 7 1 6 4 5 5 6 5 6 Max Kills in Single Turn 7 | 1 2 2 3 3 1 . 1 3 1 1 1 5 1 3 1 2 7 3 5 2 Gunslinging . | . . . . . . . . . . . . . . . . . . . . . Exploded 5 | . . 1 2 3 . . 1 3 . . . 5 . 3 1 1 3 3 5 1 Melee . | . . . . . . . . . . . . . . . . . . . . . Uniques/NPCs Destroyed 1 | . . . . . . . . . 1 . . . . . . . . . . . A7 (-6/Cetus) Combat | -11 -10 -10 -9 -9 -9 -9 -6 -6 -6 -6 -6 -5 -5 -5 -5 -5 -4 -3 -2 -1 -------- Run | Yrd Mat Min Mat Sto Rec Scr Fac Ext Cet Arc Hub Fac Was Fac Upp Upp Fac Res Res Acc Hostile Shots Fired 1886 | . 36 30 139 68 . . 32 305 38 1 164 373 . 51 15 5 41 5 20 563 Missed 626 | . 11 5 38 17 . . 8 125 8 . 37 78 . 19 8 2 14 5 4 247 Hits 1260 | . 25 25 101 51 . . 24 180 30 1 127 295 . 32 7 3 27 . 16 316 Melee 9 | . . 6 2 . . . . . . . . 1 . . . . . . . . Projectile 1251 | . 25 19 99 51 . . 24 180 30 1 127 294 . 32 7 3 27 . 16 316 AOE 1 | . . . . . . . . . . . 1 . . . . . . . . . Critical Strikes 48 | . . 1 3 . . . 2 . 5 . 6 18 . . . 1 2 . . 10 Part Disruptions 1 | . . 1 . . . . . . . . . . . . . . . . . . Damage Taken 17349 | . 216 374 1317 702 . . 443 1689 594 21 1890 5935 . 600 130 75 513 54 373 2423 Core 1483 | . 16 22 198 62 . . 56 195 26 . 117 370 . 72 . 13 106 . . 230 Absorbed by Shields 968 | . . . . . . . . 254 191 . . 332 . . . . . . . 191 Reduced by Siege Mode 157 | . . . . . . . . . . . . 157 . . . . . . . . Regen/Repaired (Parts) 2035 | . 138 . . 379 . . . 25 10 10 . 1183 242 5 . . . . 43 . Core Remaining (%) 77 | 100 . 84 . . . 35 . . . . 53 . . . . 54 90 100 100 85 Volleys Fired 1173 | 6 31 29 87 74 2 . 23 70 52 9 65 198 19 43 45 54 98 21 17 230 Largest 2 | 2 2 2 2 2 2 . 2 2 2 1 2 2 2 2 2 1 1 1 1 2 Hottest 171 | 70 100 60 112 66 66 . 66 103 66 35 134 170 170 170 98 85 110 110 90 171 Shots Fired 1694 | 12 61 53 165 145 4 . 45 134 63 9 114 317 37 59 46 55 98 21 17 239 Gun 190 | 12 42 . 87 . . . . . 41 8 . . . . . . . . . . Cannon 1132 | . 18 46 70 144 4 . 44 128 22 . 112 293 37 53 17 8 44 6 6 80 Launcher 350 | . . 7 8 1 . . 1 6 . . 2 24 . 6 29 47 48 8 6 157 Special 22 | . 1 . . . . . . . . 1 . . . . . . 6 7 5 2 Kinetic 635 | 6 39 46 77 144 4 . 44 69 63 8 75 16 . 1 11 1 8 2 . 21 Thermal 652 | 6 22 . 80 . . . . 59 . . 37 277 37 50 . 6 24 4 6 44 Explosive 56 | . . 7 8 1 . . 1 6 . . 2 24 . 6 . . . . 1 . Electromagnetic 330 | . . . . . . . . . . . . . . 2 35 48 60 8 5 172 Robot Hit Streak 21 | 7 6 10 16 15 17 . 8 16 21 15 13 15 13 6 8 . 8 5 3 9 Robot Miss Streak 5 | 2 3 4 4 4 . . 4 3 2 1 3 5 4 4 2 1 2 2 4 3 Penetration Max 1 | . . . . . . . . . 1 . . . . . . . . . . 1 Secondary Targets 1 | . . . 1 . . . . . . . . . . . . . . . . . Max Gunslinging Chain 1 | . . . 1 . . . . . . . . . . . . . . . . . Shots Hit Robots 855 | 7 34 25 110 91 2 5 26 108 55 11 67 183 26 23 12 . 19 9 3 39 Core Hits 638 | 3 19 20 52 37 2 . 15 59 20 2 22 133 3 27 27 41 47 20 9 80 Critical Kills 11 | . . . . . . . . . . . . 2 . . 2 . 2 1 . 4 Critical Parts Destroyed 12 | . . . . . . . . . 4 . . . . . . . 2 . . 6 Critical Strikes 54 | . 2 1 7 6 . . 1 3 8 . 5 3 . . 2 . 4 2 . 10 Burn 9 | . 2 . 7 . . . . . . . . . . . . . . . . . Meltdown 3 | . . . . . . . . . . . . 2 . . . . . . . 1 Destroy 25 | . . . . . . . . . 8 . . . . . 2 . 4 2 . 9 Blast 17 | . . 1 . 6 . . 1 3 . . 5 1 . . . . . . . . Melee Attacks 23 | . . . 5 1 . 5 . 3 1 4 . 3 . . 1 . . . . . Impact 7 | . . . 5 1 . . . . . . . . . . 1 . . . . . Slashing . | . . . . . . . . . . . . . . . . . . . . . Piercing . | . . . . . . . . . . . . . . . . . . . . . Sneak Attacks 18 | . . . 2 . . 5 . 3 1 4 . 3 . . . . . . . . Combat Hostiles . | . . . . . . . . . . . . . . . . . . . . . Follow-up Attacks . | . . . . . . . . . . . . . . . . . . . . . Damage Inflicted 40107 | 90 569 971 2644 2289 56 . 751 3230 1416 160 2197 9985 920 2180 1446 2266 3024 957 785 4171 Guns 2675 | 90 386 . 939 . . . . . 1100 160 . . . . . . . . . . Cannons 18826 | . 162 440 875 2051 50 . 593 2465 316 . 2163 6124 920 713 377 . 442 117 . 1018 Explosions 18126 | . . 531 575 163 . . 158 716 . . 34 3787 . 1467 1069 2266 2582 840 785 3153 Melee 221 | . . . 221 . . . . . . . . . . . . . . . . . Ramming 259 | . 21 . 34 75 6 . . 49 . . . 74 . . . . . . . . Kinetic 10124 | 27 358 440 947 2051 50 . 593 1343 1416 160 1533 399 . 51 189 . 129 34 . 404 Thermal 13104 | 63 190 . 867 . . . . 1122 . . 630 6543 920 626 . 102 1065 237 54 685 Explosive 7334 | . . 531 575 163 . . 158 716 . . 34 2915 . 1467 . . . . 525 250 Electromagnetic 9065 | . . . . . . . . . . . . 54 . 36 1257 2164 1830 686 206 2832 Impact 221 | . . . 221 . . . . . . . . . . . . . . . . . Slashing . | . . . . . . . . . . . . . . . . . . . . . Piercing . | . . . . . . . . . . . . . . . . . . . . . Highest Corruption 20 | . . 6 2 2 2 5 1 1 . . . 10 10 10 10 20 1 . . 5 Average Corruption 4 | . . 5 2 2 2 5 1 1 . . . 3 10 10 10 10 1 . . 3 Corruption Purged 10 | . . . . . . . . 1 . . . 9 . . . . . . . . Corruption Blocked . | . . . . . . . . . . . . . . . . . . . . . Effects 215 | . . 23 1 20 10 . 8 1 . . . 45 9 25 25 30 3 . . 15 Message Errors 52 | . . 3 . 4 5 . 5 . . . . 8 3 5 6 9 . . . 4 Matter Fused 53 | . . 6 . 6 3 . 3 1 . . . 6 1 7 6 7 2 . . 5 Heat Flow Errors 17 | . . 4 . . 1 . . . . . . 6 1 . 1 3 1 . . . Energy Discharges 26 | . . 5 1 1 1 . . . . . . 4 1 3 4 6 . . . . Parts Rejected 4 | . . . . . . . . . . . . 3 . . . . . . . 1 Parts Fused 1 | . . . . . . . . . . . . 1 . . . . . . . . Data Loss (minor) 22 | . . 1 . 6 . . . . . . . 2 2 3 4 3 . . . 1 Data Loss (major) 9 | . . 1 . 2 . . . . . . . 4 . . . 1 . . . 1 Misfires 9 | . . 3 . . . . . . . . . 4 . 1 . 1 . . . . Alerts 6 | . . . . . . . . . . . . 4 . 2 . . . . . . Misdirections 2 | . . . . . . . . . . . . . . 2 . . . . . . Weapon Failures 14 | . . . . 1 . . . . . . . 3 1 2 4 . . . . 3 Overload Shots 1 | . . . . . . . . . . . . 1 . . . . . . . . Overflow Damage 887 | . . 21 88 . . . . 50 . . 65 253 5 141 59 5 89 1 4 106 Projectiles 361 | . . 17 . . . . . 14 . . 65 166 5 28 59 . . 1 . 6 Explosions 438 | . . 4 . . . . . 36 . . . 87 . 113 . 5 89 . 4 100 Melee 88 | . . . 88 . . . . . . . . . . . . . . . . . Knockbacks 70 | . 2 14 5 11 . . 8 1 . . 19 2 . . 1 . 2 . . 5 Impact 3 | . . . 1 1 . . . . . . . 1 . . . . . . . . Kinetic 61 | . 2 12 4 9 . . 8 1 . . 16 1 . . 1 . 2 . . 5 Secondary 6 | . . 2 . 1 . . . . . . 3 . . . . . . . . . Self-Inflicted Damage 701 | . . 21 66 31 . . . . . . . 442 . . . 31 . 55 . 55 Shots 24 | . . 3 4 1 . . . . . . . 11 . . . 3 . 1 . 1 Rammed 35 | . 9 . 7 5 1 . . 5 . . . 8 . . . . . . . . Targets Rammed 39 | . 10 . 9 6 1 . . 5 . . . 8 . . . . . . . . Kicked . | . . . . . . . . . . . . . . . . . . . . . Crushed 4 | . 1 . 2 1 . . . . . . . . . . . . . . . . Highest Temperature 341 | 27 45 263 27 123 269 . 7 29 . . 341 245 227 111 82 213 104 33 8 57 Average Temperature 45 | 11 14 101 11 29 101 . 7 12 . . 100 44 58 45 57 102 21 17 4 12 Received Heat Transfer 3104 | . 24 82 453 261 . . 213 395 19 . 714 733 . 120 . . 72 . 18 . Siege Activations 8 | . . . . . . . . . . . . 8 . . . . . . . . Total Turns 194 | . . . . . . . . . . . . 194 . . . . . . . . Longest Duration 79 | . . . . . . . . . . . . 79 . . . . . . . . Martial Activations . | . . . . . . . . . . . . . . . . . . . . . Shielding Activations . | . . . . . . . . . . . . . . . . . . . . . Robots Disrupted 1 | . . . . . . . . . . . . 1 . . . . . . . . Combat Hostiles 1 | . . . . . . . . . . . . 1 . . . . . . . . Robots Corrupted 43 | . . . 2 . . . . . . . . . . . 5 12 11 1 . 12 Combat Hostiles 38 | . . . . . . . . . . . . . . . 5 11 10 1 . 11 Parts Fried 64 | . . . 4 . . . . . . . . . . . 5 11 24 1 1 18 Impact Corruptions 3 | . . . 3 . . . . . . . . . . . . . . . . . Robots Melted 7 | . . . 1 . . . . . . . . 5 . . . . . . . 1 Combat Hostiles 6 | . . . 1 . . . . . . . . 4 . . . . . . . 1 Parts Melted 39 | . 1 . 3 . . . . 5 . . . 26 . 1 . . 1 1 . 1 Heat Transferred 16201 | 185 703 . 2664 . . . . 1786 . . 150 7167 1110 740 . 100 900 150 50 496 Parts Sabotaged . | . . . . . . . . . . . . . . . . . . . . . Parts Stolen . | . . . . . . . . . . . . . . . . . . . . . Parts Stripped . | . . . . . . . . . . . . . . . . . . . . . Power Chain Reactions 19 | . . . . . . . . . . . . 1 . . 1 3 2 2 1 9 Alert | -11 -10 -10 -9 -9 -9 -9 -6 -6 -6 -6 -6 -5 -5 -5 -5 -5 -4 -3 -2 -1 ------- Run | Yrd Mat Min Mat Sto Rec Scr Fac Ext Cet Arc Hub Fac Was Fac Upp Upp Fac Res Res Acc Maximum Alert Level 4 | . . . 1 1 . . 1 3 2 1 4 4 2 2 . . 2 1 1 2 Low Security (%) 44 | 100 100 100 56 37 100 . 68 74 . 52 12 . . 42 . . 13 8 94 18 Level 1 27 | . . . 43 62 . . 31 3 . 47 2 19 45 19 . . 73 91 5 42 Level 2 17 | . . . . . . . . 19 100 . 31 34 54 38 . . 13 . . 39 Level 3 5 | . . . . . . . . 3 . . 31 24 . . . . . . . . Level 4 4 | . . . . . . . . . . . 22 21 . . . . . . . . Level 5 . | . . . . . . . . . . . . . . . . . . . . . High Security . | . . . . . . . . . . . . . . . . . . . . . Max Security . | . . . . . . . . . . . . . . . . . . . . . Peak Influence 1371 | 10 172 108 399 369 109 . 282 919 586 276 1222 1371 523 511 . . 661 390 208 513 Initial 590 | . . . 7 111 109 . . 84 512 171 26 590 479 188 . . 259 338 99 98 Average 311 | 1 83 34 182 242 17 . 149 158 514 184 738 722 397 295 . . 307 303 106 322 Influence Increases 13779 | 15 430 242 1102 780 71 . 716 1685 381 192 1783 2130 60 950 500 430 848 292 284 888 Destroy 0b10 Robot/C 6940 | . 240 140 680 440 40 . 420 760 160 80 820 1040 . 340 320 420 380 140 100 420 Destroy 0b10 Robot/NC 550 | 15 35 20 65 55 . . 20 40 10 5 40 105 . 30 5 . 40 5 . 60 Destroy Leader 1220 | . 54 30 160 144 . . 64 96 . . 180 228 . 62 40 10 50 20 10 72 Allied During Kill 1504 | . . . . . 20 . 93 603 170 85 503 2 . 23 . . . . 5 . Successful Hack 568 | . 25 7 37 31 11 . 2 15 . . 4 143 . 82 . . 34 68 64 45 Select Force Hacks 60 | . 60 . . . . . . . . . . . . . . . . . . . Disable Machine 870 | . 15 15 15 75 . . 105 75 15 15 90 210 . 75 . . 105 . . 60 Destroy Structure 1242 | . 1 30 55 20 . . 12 51 26 7 71 402 60 128 . . 164 14 90 111 Partial Spotted 120 | . . . . . . . . 15 . . . . . . . . 45 45 15 . Lose Combat Pursuer 705 | . . . 90 15 . . . 30 . . 75 . . 210 135 . 30 . . 120 Influence Decreases 13383 | 15 430 221 859 761 354 . 542 944 867 544 655 1966 1160 759 483 495 615 759 297 657 Entered New Map 3597 | . . . 14 153 174 . . 90 403 258 51 615 890 81 171 91 153 307 79 67 Time Decay 6774 | 15 430 207 485 598 180 . 422 398 294 246 364 711 90 296 302 404 452 302 198 380 Lost Part 554 | . . 14 60 10 . . . 70 10 . 40 110 . 20 . . 10 . . 210 Lost Ally 1064 | . . . . . . . 120 174 160 40 200 80 180 80 10 . . . 20 . Purge Threat 1394 | . . . 300 . . . . 212 . . . 450 . 282 . . . 150 . . Squads Dispatched 74 | . 2 . 2 2 . . 4 . . . 10 19 . 6 . . 15 2 2 10 Investigation 24 | . 2 . 1 1 . . 1 . . . 3 6 . 1 . . 7 . 1 1 Extermination 18 | . . . . . . . 2 . . . 1 5 . 2 . . 4 1 1 2 Reinforcement 26 | . . . 1 1 . . 1 . . . 5 5 . 3 . . 2 1 . 7 Assault 6 | . . . . . . . . . . . 1 3 . . . . 2 . . . Garrison . | . . . . . . . . . . . . . . . . . . . . . Intercept . | . . . . . . . . . . . . . . . . . . . . . Searches Triggered . | . . . . . . . . . . . . . . . . . . . . . Unchained Authorized 2 | . . . . . . . . . . . . . . . . . . . 1 1 Construction Impeded 11 | . . . . . . . . . . . 2 3 . 1 . . 1 . . 4 Haulers Reinforced 2 | . . . . . . . . . . . . . . . . . 1 . . 1 Active Scanning Responses . | . . . . . . . . . . . . . . . . . . . . . Cargo Convoy Interrupts . | . . . . . . . . . . . . . . . . . . . . . Stealth | -11 -10 -10 -9 -9 -9 -9 -6 -6 -6 -6 -6 -5 -5 -5 -5 -5 -4 -3 -2 -1 --------- Run | Yrd Mat Min Mat Sto Rec Scr Fac Ext Cet Arc Hub Fac Was Fac Upp Upp Fac Res Res Acc Distress Signals 23 | . 1 . 4 1 . . . 2 2 . 5 . . 3 . . 2 1 . 2 Communications Jammed 1 | . . . . . . . . . . . . . . . . . . 1 . . Distress Signals 1 | . . . . . . . . . . . . . . . . . . 1 . . Times Spotted 467 | . 19 13 51 41 . . 20 46 10 5 36 69 5 37 10 10 47 11 13 24 Peak Tracking Total 12 | . 4 3 7 5 . . 6 6 5 1 6 6 2 12 5 9 6 8 6 6 Tactical Retreats 67 | . . 1 3 1 . . . 2 . . 5 2 . 6 7 9 14 1 5 11 ECM-based Alert Blocks 128 | . . . . . . . . . . . . 2 . 5 14 40 40 7 5 15 Traps | -11 -10 -10 -9 -9 -9 -9 -6 -6 -6 -6 -6 -5 -5 -5 -5 -5 -4 -3 -2 -1 ------- Run | Yrd Mat Min Mat Sto Rec Scr Fac Ext Cet Arc Hub Fac Was Fac Upp Upp Fac Res Res Acc Traps Triggered 14 | . . . 2 . . . 2 2 . . . 7 . . . . . 1 . . Indirectly . | . . . . . . . . . . . . . . . . . . . . . Trap Hack Attempts 50 | . . . . . . . . . . . . . . 50 . . . . . . Triggered 1 | . . . . . . . . . . . . . . 1 . . . . . . Disarmed . | . . . . . . . . . . . . . . . . . . . . . Reprogrammed 11 | . . . . . . . . . . . . . . 11 . . . . . . Reused . | . . . . . . . . . . . . . . . . . . . . . Traps Extracted . | . . . . . . . . . . . . . . . . . . . . . Installed . | . . . . . . . . . . . . . . . . . . . . . Triggered . | . . . . . . . . . . . . . . . . . . . . . Machines | -11 -10 -10 -9 -9 -9 -9 -6 -6 -6 -6 -6 -5 -5 -5 -5 -5 -4 -3 -2 -1 ---------- Run | Yrd Mat Min Mat Sto Rec Scr Fac Ext Cet Arc Hub Fac Was Fac Upp Upp Fac Res Res Acc Machines Disabled 61 | . 1 1 1 5 . . 7 6 1 1 6 14 . 5 . 2 7 . . 4 Max in Single Turn 5 | . 1 1 1 1 . . 1 1 1 1 1 2 . 2 . 2 5 . . 1 Garrison Access 5 | . . . . 1 . . . . . . . 1 . . . . 1 1 1 . Network Hub 1 | . . . . . . . . . . . 1 . . . . . . . . . Energy Cycler 2 | . . . . . . . . 2 . . . . . . . . . . . . Machines Repaired . | . . . . . . . . . . . . . . . . . . . . . Machines Dismantled 4 | . . . . 1 . . . 1 1 . 1 . . . . . . . . . Machines Sabotaged . | . . . . . . . . . . . . . . . . . . . . . Overloaded Fab Kills . | . . . . . . . . . . . . . . . . . . . . . Hacking | -11 -10 -10 -9 -9 -9 -9 -6 -6 -6 -6 -6 -5 -5 -5 -5 -5 -4 -3 -2 -1 --------- Run | Yrd Mat Min Mat Sto Rec Scr Fac Ext Cet Arc Hub Fac Was Fac Upp Upp Fac Res Res Acc Machines Accessed 122 | . 10 2 7 16 6 3 6 12 1 . 3 16 . 12 . . 11 7 7 3 Terminals 81 | . 7 2 5 13 6 . 2 12 1 . 3 10 . 9 . . 2 3 3 3 Fabricators 11 | . . . . . . . 2 . . . . 4 . 2 . . 2 1 . . Repair Stations 5 | . 1 . . 2 . . . . . . . 1 . . . . . . 1 . Recycling Units 10 | . 2 . 1 . . . . . . . . . . . . . 5 . 2 . Scanalyzers 7 | . . . 1 . . . 2 . . . . . . 1 . . 1 2 . . Garrison Access 5 | . . . . 1 . . . . . . . 1 . . . . 1 1 1 . Total Hacks 395 | . 33 9 25 49 16 10 13 24 1 . 10 60 . 62 . . 26 24 24 9 Successful 210 | . 21 2 11 30 10 10 8 11 . . 2 35 . 27 . . 11 17 12 3 Failed 181 | . 11 7 13 19 6 . 5 13 1 . 8 25 . 34 . . 14 7 12 6 Catastrophic 34 | . 1 . 1 1 1 . 2 . 1 . . 8 . 12 . . 5 . 2 . Database Lockouts 4 | . 1 . 1 . . . . . . . . . . 1 . . 1 . . . Manual 181 | . 17 9 12 16 14 . 5 9 1 . 10 27 . 22 . . 15 9 11 4 Terminals 265 | . 22 9 17 38 16 . 3 24 1 . 10 38 . 51 . . 5 10 12 9 Fabricators 40 | . . . . . . . 5 . . . . 17 . 6 . . 6 6 . . Repair Stations 22 | . 6 . . 9 . . . . . . . 4 . . . . . . 3 . Recycling Units 23 | . 5 . 3 . . . . . . . . . . . . . 9 . 6 . Scanalyzers 25 | . . . 5 . . . 5 . . . . . . 5 . . 3 7 . . Garrison Access 10 | . . . . 2 . . . . . . . 1 . . . . 3 1 3 . Terminal Hacks 97 | . 6 2 7 12 3 10 . 10 . . 1 16 . 18 . . 1 5 4 2 Record 4 | . . . . . . 4 . . . . . . . . . . . . . . Part Schematic 6 | . . 1 . . . . . 1 . . . 2 . 2 . . . . . . Robot Schematic 1 | . . . . . 1 . . . . . . . . . . . . . . . Robot Analysis 10 | . 2 1 1 . . 5 . . . . . . . . . . . . 1 . Prototype ID Bank 7 | . 2 . 1 2 1 . . . . . . . . 1 . . . . . . Open Door 12 | . . . . 4 . . . 7 . . . . . . . . . . . 1 Level Access Points 3 | . . . . . . . . . . . . . . . . . . 1 1 1 Branch Access Points 4 | . . . . . . . . . . . . 1 . 1 . . 1 1 . . Terminal Index 4 | . . . . 1 1 . . . . . . 1 . 1 . . . . . . Fabricator Index 2 | . . . . . . . . . . . . 1 . 1 . . . . . . Repair Station Index 1 | . . . 1 . . . . . . . . . . . . . . . . . Scanalyzer Index 1 | . . . 1 . . . . . . . . . . . . . . . . . Unreport Threat 11 | . . . 2 . . . . 2 . . . 3 . 3 . . . 1 . . Locate Traps 12 | . 1 . 1 2 . . . . . . 1 4 . 3 . . . . . . Reprogram Traps 2 | . . . . . . . . . . . . . . 2 . . . . . . Maintenance Status 1 | . . . . . . . . . . . . . . . . . . 1 . . Recall Extermination 3 | . . . . . . . . . . . . . . 1 . . . 1 1 . Recall Reinforcements 2 | . . . . . . . . . . . . . . 2 . . . . . . Recall Assault 1 | . . . . . . . . . . . . 1 . . . . . . . . Hauler Manifests 1 | . . . . 1 . . . . . . . . . . . . . . . . Registered Components 2 | . . . . . . . . . . . . 1 . . . . . . 1 . Zone Layout 6 | . 1 . . 2 . . . . . . . 2 . 1 . . . . . . Proto ID Catalog 1 | . . . . . . 1 . . . . . . . . . . . . . . Fabricator Hacks 17 | . . . . . . . 1 . . . . 8 . 3 . . 2 3 . . Network Status 3 | . . . . . . . 1 . . . . . . . . . 1 1 . . Load Schematic 9 | . . . . . . . . . . . . 5 . 2 . . 1 1 . . Build 5 | . . . . . . . . . . . . 3 . 1 . . . 1 . . Repair Station Hacks 18 | . 4 . . 8 . . . . . . . 4 . . . . . . 2 . Scan Component 9 | . 2 . . 4 . . . . . . . 2 . . . . . . 1 . Repair 9 | . 2 . . 4 . . . . . . . 2 . . . . . . 1 . Recycling Unit Hacks 5 | . 1 . 1 . . . . . . . . . . . . . 1 . 2 . Retrieve Components 5 | . 1 . 1 . . . . . . . . . . . . . 1 . 2 . Scanalyzer 12 | . . . 1 . . . 4 . . . . . . 4 . . 1 2 . . Insert Component 1 | . . . . . . . 1 . . . . . . . . . . . . . Analyze 1 | . . . . . . . 1 . . . . . . . . . . . . . Retrieve Study 10 | . . . 1 . . . 2 . . . . . . 4 . . 1 2 . . Garrison Access Hacks 4 | . . . . 1 . . . . . . . 1 . . . . . 1 1 . Seal Access 4 | . . . . 1 . . . . . . . 1 . . . . . 1 1 . Unauthorized Hacks 57 | . 10 . 2 9 7 . 3 1 . . 1 6 . 2 . . 6 6 3 1 Terminals 36 | . 8 . 1 9 7 . . 1 . . 1 2 . 1 . . . 4 1 1 Track 1 | . 1 . . . . . . . . . . . . . . . . . . . Assimilate 3 | . . . . . . . . . . . . . . 1 . . . 2 . . Botnet 12 | . 1 . 1 2 2 . . 1 . . . 2 . . . . . 1 1 1 Disrupt 1 | . 1 . . . . . . . . . . . . . . . . . . . Operators 2 | . . . . 1 . . . . . . . . . . . . . 1 . . Skim 16 | . 5 . . 6 5 . . . . . . . . . . . . . . . Sabotage 1 | . . . . . . . . . . . 1 . . . . . . . . . Fabricators 11 | . . . . . . . 3 . . . . 4 . 1 . . 1 2 . . Prioritize 2 | . . . . . . . . . . . . 1 . . . . . 1 . . Liberate 3 | . . . . . . . 2 . . . . 1 . . . . . . . . Haulers 2 | . . . . . . . 1 . . . . . . . . . . 1 . . Recompile 4 | . . . . . . . . . . . . 2 . 1 . . 1 . . . Repair Stations . | . . . . . . . . . . . . . . . . . . . . . Recycling Units 10 | . 2 . 1 . . . . . . . . . . . . . 5 . 2 . Reject 2 | . . . 1 . . . . . . . . . . . . . . . 1 . Tunnel 2 | . 2 . . . . . . . . . . . . . . . . . . . Fedlink 6 | . . . . . . . . . . . . . . . . . 5 . 1 . Scanalyzers . | . . . . . . . . . . . . . . . . . . . . . Garrison Access . | . . . . . . . . . . . . . . . . . . . . . Data Cores Recovered 3 | . 1 . . 1 . . . . . . . 1 . . . . . . . . Used 1 | . 1 . . . . . . . . . . . . . . . . . . . Hacking Detections 92 | . 8 2 6 13 6 . 6 7 1 . 3 11 . 10 . . 5 6 6 2 Full Trace Events 13 | . . 1 1 1 1 . 1 . . . 2 4 . . . . 1 . . 1 Feedback Events 3 | . . . . . . . . . . . 1 2 . . . . . . . . Corruption 2 | . . . . . . . . . . . . 2 . . . . . . . . Hackware Fried 1 | . . . . . . . . . . . 1 . . . . . . . . . Feedback Blocked . | . . . . . . . . . . . . . . . . . . . . . Robot Schematics Acquired 1 | . . . . . 1 . . . . . . . . . . . . . . . Robots Built . | . . . . . . . . . . . . . . . . . . . . . Authchips . | . . . . . . . . . . . . . . . . . . . . . Time . | . . . . . . . . . . . . . . . . . . . . . Total Robot Build Rating . | . . . . . . . . . . . . . . . . . . . . . Part Schematics Acquired 7 | . . 1 . . . . 1 1 . . . 2 . 2 . . . . . . Parts Built 7 | . . . . . . . . . . . . 5 . 1 . . . 1 . . Authchips 4 | . . . . . . . . . . . . 2 . 1 . . . 1 . . Time 213 | . . . . . . . . . . . . 61 . 76 . . . 76 . . Total Part Build Rating 35 | . . . . . . . . . . . . 25 . 5 . . . 5 . . Part Studies Acquired 10 | . . . 1 . . . 2 . . . . . . 4 . . 1 2 . . Parts Repaired 9 | . 2 . . 4 . . . . . . . 2 . . . . . . 1 . Time 410 | . 52 . . 116 . . . . . . . 216 . . . . . . 26 . Parts Recycled . | . . . . . . . . . . . . . . . . . . . . . Recycled Matter . | . . . . . . . . . . . . . . . . . . . . . Retrieved Matter . | . . . . . . . . . . . . . . . . . . . . . Retrieved Components 24 | . 9 . 10 . . . . . . . . . . . . . 3 . 2 . Parts Scanalyzed 1 | . . . . . . . 1 . . . . . . . . . . . . . Part Schematics Acquired 1 | . . . . . . . 1 . . . . . . . . . . . . . Parts Damaged . | . . . . . . . . . . . . . . . . . . . . . Bothacking | -11 -10 -10 -9 -9 -9 -9 -6 -6 -6 -6 -6 -5 -5 -5 -5 -5 -4 -3 -2 -1 ------------ Run | Yrd Mat Min Mat Sto Rec Scr Fac Ext Cet Arc Hub Fac Was Fac Upp Upp Fac Res Res Acc Used RIF Installer . | . . . . . . . . . . . . . . . . . . . . . Robots Hacked 19 | . . . . . . 5 . 1 1 1 . . . . . . 3 5 1 2 Non-combat 3 | . . . . . . 1 . . . 1 . . . . . . . 1 . . Combat 9 | . . . . . . 4 . 1 1 . . . . . . . . 1 . 2 Robot Hacks Applied 15 | . . . . . . 5 . 1 1 4 . . . . . . . 2 . 2 parse_system 12 | . . . . . . 5 . 1 1 1 . . . . . . . 2 . 2 check_alert 3 | . . . . . . . . . . 3 . . . . . . . . . . Manual 7 | . . . . . . . . . . . . . . . . . 3 3 1 . Relay Couplers Released 1 | . . . . . . . . . . . . . . . . . 1 . . . Machine Destruction 1 | . . . . . . . . . . . . . . . . . 1 . . . Fabnet Peak Effective % . | . . . . . . . . . . . . . . . . . . . . . Robots Rewired 16 | . . . . . . . . 15 . . . 1 . . . . . . . . Allies Hacked . | . . . . . . . . . . . . . . . . . . . . . Hacks Repelled . | . . . . . . . . . . . . . . . . . . . . . Allies | -11 -10 -10 -9 -9 -9 -9 -6 -6 -6 -6 -6 -5 -5 -5 -5 -5 -4 -3 -2 -1 -------- Run | Yrd Mat Min Mat Sto Rec Scr Fac Ext Cet Arc Hub Fac Was Fac Upp Upp Fac Res Res Acc Total Allies 73 | . . . . 10 . 1 . 31 5 . . 4 19 1 . . . 2 . . Largest Group 24 | . . . . 10 10 11 10 24 23 19 15 3 19 5 . . . 2 2 . Highest-Rated Group 1097 | . . . . 88 88 167 159 943 1097 891 751 90 702 155 . . . 71 71 . Highest-Rated Ally 159 | . . . . 16 16 79 79 159 159 96 96 41 50 46 . . . 45 45 . Total Orders 52 | . . . . . . 4 2 2 3 . 4 . . 7 5 2 . 7 16 . STAY 23 | . . . . . . 2 1 1 2 . 2 . . 1 . . . 4 10 . FOLLOW 17 | . . . . . . 2 1 1 1 . 2 . . 1 . . . 3 6 . EXPLORE 7 | . . . . . . . . . . . . . . 3 3 1 . . . . RETURN 5 | . . . . . . . . . . . . . . 2 2 1 . . . . Ally Attacks 749 | . . . . . . . 100 158 83 33 229 5 128 13 . . . . . . Total Damage 19391 | . . . . . . . 1702 3290 2264 816 6694 235 4100 290 . . . . . . Kills 109 | . . . . . . . 19 20 10 6 40 2 11 1 . . . . . . Allies Corrupted 1 | . . . . . . . . . . . . 1 . . . . . . . . Allies Melted . | . . . . . . . . . . . . . . . . . . . . . Intel | -11 -10 -10 -9 -9 -9 -9 -6 -6 -6 -6 -6 -5 -5 -5 -5 -5 -4 -3 -2 -1 ------- Run | Yrd Mat Min Mat Sto Rec Scr Fac Ext Cet Arc Hub Fac Was Fac Upp Upp Fac Res Res Acc Active Infowar (turns) 6593 | . . . 469 . . 2 . . . . . 945 173 460 632 962 1119 678 409 744 Sensors 5864 | . . . . . . . . . . . . 805 173 455 632 962 1106 677 409 645 Structural 101 | . . . 101 . . . . . . . . . . . . . . . . . Traps 2 | . . . . . . 2 . . . . . . . . . . . . . . Machine Analysis 368 | . . . 368 . . . . . . . . . . . . . . . . . Cloaking 196 | . . . . . . . . . . . . . . . . . 196 . . . Jamming 737 | . . . . . . . . . . . . . . . . . . 300 96 341 ECM 2721 | . . . . . . . . . . . . 318 . 128 108 627 795 24 313 408 Robot Analysis Total 10 | . 2 1 1 . . 5 . . . . . . . . . . . . 1 . Derelict Logs Recovered 4 | . . 1 . . . . . . . . . . . . 2 1 . . . . Drone Launches 7 | . . . . . . . . . . . . . . 3 3 1 . . . . Drone Recoveries 5 | . . . . . . . . . . . . . . 2 2 1 . . . . Exploration | -11 -10 -10 -9 -9 -9 -9 -6 -6 -6 -6 -6 -5 -5 -5 -5 -5 -4 -3 -2 -1 ------------- Run | Yrd Mat Min Mat Sto Rec Scr Fac Ext Cet Arc Hub Fac Was Fac Upp Upp Fac Res Res Acc Turns Passed 24942 | 131 1106 888 1520 1901 889 4162 1121 2387 643 529 858 3204 185 671 667 966 1133 678 409 894 Spaces Moved 15036 | 63 473 477 692 608 434 1993 480 945 246 114 319 1367 167 756 781 1201 1402 1257 648 613 Core 3 | 3 . . . . . . . . . . . . . . . . . . . . Treads 6582 | 60 473 477 692 608 434 1904 . 677 . . . 1257 . . . . . . . . Legs . | . . . . . . . . . . . . . . . . . . . . . Wheels 1618 | . . . . . . 89 480 268 246 114 319 102 . . . . . . . . Hover 6833 | . . . . . . . . . . . . 8 167 756 781 1201 1402 1257 648 613 Flight . | . . . . . . . . . . . . . . . . . . . . . Fastest Speed 26 | 50 160 160 160 160 200 175 190 120 120 130 130 50 50 31 42 42 26 42 42 26 Average Speed 115 | 154 160 160 160 195 200 198 190 180 128 132 139 162 50 48 42 42 41 42 42 44 Slowest Speed 240 | 160 160 160 160 200 200 200 190 200 130 140 140 240 50 103 42 42 42 98 42 147 Overloaded Moves 66 | . . . . . . . . . . . . . . 14 . . 23 . . 29 Propulsion Burnouts . | . . . . . . . . . . . . . . . . . . . . . Robots Hopped . | . . . . . . . . . . . . . . . . . . . . . Potential Cave-ins 15 | . . . . . . . . . . . 6 7 . 2 . . . . . . Cave-ins Triggered 1 | . . . . . . . . . . . . 1 . . . . . . . . Exploration Rate (%) 55 | 5 75 94 56 86 94 86 13 76 66 67 29 37 89 24 79 98 31 33 15 8 Regions Visited 20 Branch Regions 10 Pre-discovered Areas 6 | . 2 . . 1 2 . . . . . . . . . . . 1 . . . Known Exits Taken 9 | . . 1 1 1 . . . . . . . . . 1 1 1 1 1 1 . Unknown Exits Taken 9 | 1 1 . . . 1 1 1 1 1 1 1 . . . . . . . . . Scrap Searched 14 | . . 1 . . . 5 . . . . . . . . 3 5 . . . . Spaces Dug 151 | . . 28 8 1 . . 12 . . . 14 44 . 11 1 . 17 1 6 8 Terrain Destroyed 744 | . . 52 54 16 . . 13 30 13 3 38 220 5 65 14 28 98 8 48 39 Melee 2 | . . . 1 1 . . . . . . . . . . . . . . . . Projectile 222 | . . 1 1 5 . . 1 3 13 3 31 82 5 30 4 6 20 2 6 9 AOE 520 | . . 51 52 10 . . 12 27 . . 7 138 . 35 10 22 78 6 42 30 Terrain Rammed . | . . . . . . . . . . . . . . . . . . . . . Walls Destroyed . | . . . . . . . . . . . . . . . . . . . . . Machines Disabled . | . . . . . . . . . . . . . . . . . . . . . Actions | -11 -10 -10 -9 -9 -9 -9 -6 -6 -6 -6 -6 -5 -5 -5 -5 -5 -4 -3 -2 -1 --------- Run | Yrd Mat Min Mat Sto Rec Scr Fac Ext Cet Arc Hub Fac Was Fac Upp Upp Fac Res Res Acc Total 20733 | 82 753 549 927 1151 450 2196 643 1465 493 485 598 2023 228 993 1067 1609 1863 1384 776 998 Wait 3342 | 3 218 38 53 412 11 145 104 250 146 344 192 292 30 94 212 335 240 57 77 89 Move 15015 | 62 472 476 691 607 433 1992 479 944 245 113 318 1366 166 755 780 1200 1401 1256 647 612 Hop . | . . . . . . . . . . . . . . . . . . . . . Pick Up 189 | 5 9 . 22 12 1 17 9 11 10 5 4 30 1 8 5 3 14 7 7 9 Fast Attach 137 | 6 3 1 13 5 . 5 3 11 3 . . 18 5 6 4 1 26 12 2 13 Attach 100 | . . 1 4 3 . . 4 6 2 . 4 21 . 2 2 4 18 2 10 17 Detach 79 | . . . 3 3 . . 1 7 1 . . 13 . 4 3 3 17 5 7 12 Swap 204 | . 5 4 17 14 2 7 7 22 11 5 12 40 2 21 7 4 12 8 2 2 Drop 230 | . 5 . 23 6 . 25 5 12 14 5 . 33 5 10 8 5 37 16 7 14 Fire 1173 | 6 31 29 87 74 2 . 23 70 52 9 65 198 19 43 45 54 98 21 17 230 Melee 23 | . . . 5 1 . 5 . 3 1 4 . 3 . . 1 . . . . . Ram . | . . . . . . . . . . . . . . . . . . . . . Kick . | . . . . . . . . . . . . . . . . . . . . . Crush 39 | . 10 . 9 6 1 . . 5 . . . 8 . . . . . . . . Escape Stasis 11 | . . . . . . . 8 2 . . . 1 . . . . . . . . Rewire 114 | . . . . . . . . 114 . . . . . . . . . . . . Trap 50 | . . . . . . . . . . . . . . 50 . . . . . . Miscellaneous 27 | . . . . 8 . . . 8 8 . 3 . . . . . . . . . Route ------- -11/Scrapyard -10/Materials (discovered 4 exits: *Mat x3 / *Min) -10/Mines (discovered 3 exits: *Mat x2 / [*Sub]) -9/Materials (discovered 6 exits: *Mat x2 / [*Min x2] / *Sto x2) -9/Storage (discovered 2 exits: *Mat / *Rec) -9/Recycling (discovered 2 exits: [*Fac] / *Scr) -9/Scraptown (discovered 2 exits: *Fac x2) -6/Factory -6/Extension (discovered 2 exits: *Fac / *Cet) -6/Cetus (discovered 2 exits: *Fac / [*Arc]) -6/Archives -6/Hub_04(d) -5/Factory (discovered 3 exits: *Fac / *Upp x2) -5/Waste -5/Factory (discovered 2 exits: *Upp x2) -5/Upper Caves -5/Upper Caves (discovered 2 exits: *Fac / *War) -4/Factory (discovered 5 exits: *Res x2 / Upp x2 / Arm) -3/Research (discovered 5 exits: *Res x3 / Tes x2) -2/Research (discovered 3 exits: *Acc x3) -1/Access To Epsilon Eridani History --------- Turn | Location | Event 14 | -11/Scrapyard | Discovered new exit (range 16) 132 | -11/Scrapyard | Entered Materials 304 | -10/Materials | Build established: Mutant 375 | -10/Materials | Central database locked down 558 | -10/Materials | Discovered new exit (range 9) 656 | -10/Materials | Repaired Lgt. Treads 684 | -10/Materials | Repaired Lgt. Treads 905 | -10/Materials | Identified exit to Materials 929 | -10/Materials | Discovered new exit (range 10) 976 | -10/Materials | Loaded intel: 13 trap records 1083 | -10/Materials | Learned location of 1 exit from Storage 1139 | -10/Materials | Learned location of 1 exit from Storage 1203 | -10/Materials | Learned 2 Storage zone layouts 1238 | -10/Materials | Entered Mines 1239 | -10/Mines | Assembled infested the area 1313 | -10/Mines | Met a Derelict bent on vengeance 1584 | -10/Mines | Learned location of 1 exit from Materials 1692 | -10/Mines | Discovered new exit (range 10) 2046 | -10/Mines | Discovered exit to Materials (range 7) 2126 | -10/Mines | Entered Materials 2126 | -9/Materials | Evolved 2 slots: Propulsion x1, Utility x1 2127 | -9/Materials | Identified exit to Materials 2384 | -9/Materials | Discovered new exit (range 16) 2491 | -9/Materials | Discovered new exit (range 7) 2592 | -9/Materials | Discovered new exit (range 12) 2593 | -9/Materials | Identified exit to Storage 2717 | -9/Materials | Lost 3 parts (1p1u1w) 2950 | -9/Materials | Discovered new exit (range 15) 2982 | -9/Materials | Build established: Scavenger-Mutant 3262 | -9/Materials | Discovered exit to Materials (range 16) 3495 | -9/Materials | Central database locked down 3646 | -9/Materials | Entered Storage 3647 | -9/Storage | Identified exit to Recycling 3880 | -9/Storage | Core integrity fell below 50% 4223 | -9/Storage | Build established: Mutant 4674 | -9/Storage | Repaired Imp. Light Cannon 4695 | -9/Storage | Build established: Scavenger-Mutant 4971 | -9/Storage | Repaired Imp. Light Cannon 4998 | -9/Storage | Repaired Lgt. Treads+ 5025 | -9/Storage | Repaired Lgt. Armor Plating 5223 | -9/Storage | Learned 2 Materials zone layouts 5274 | -9/Storage | Build established: Mutant 5355 | -9/Storage | Learned 2 Materials zone layouts 5401 | -9/Storage | Learned Materials stockpile data 5459 | -9/Storage | Learned location of Zion (-6) 5511 | -9/Storage | Assisted by bots powering up and referring to "LRC-V3" 5531 | -9/Storage | Used back door to open Recycling access 5547 | -9/Storage | Entered Recycling 5547 | -9/Recycling | Accompanied by 10 allies 5806 | -9/Recycling | Build established: Commander-Mutant 5957 | -9/Recycling | Discovered new exit (range 16) 6006 | -9/Recycling | Learned location of 2 exits from Materials 6101 | -9/Recycling | Learned Storage emergency access door positions 6131 | -9/Recycling | Learned location of 2 exits from Materials 6153 | -9/Recycling | Learned location of 2 exits from Materials 6164 | -9/Recycling | Learned Storage stockpile data 6173 | -9/Recycling | Learned location of 2 exits from Materials 6193 | -9/Recycling | Learned Materials stockpile data 6225 | -9/Recycling | Learned Storage interactive machine intel 6265 | -9/Recycling | Learned 2 Materials zone layouts 6374 | -9/Recycling | Scanned before Scraplab entrance 6404 | -9/Recycling | Entered Scraplab 6420 | -9/Recycling | Discovered new exit (range 3) 6436 | -9/Recycling | Entered Scraptown 6436 | -9/Scraptown | Accompanied by 10 allies 6438 | -9/Scraptown | System corruption cleaned by C-Scrubber 6981 | -9/Scraptown | Discovered new exit (range 11) 7091 | -9/Scraptown | Visited Comm Corps 7139 | -9/Scraptown | Visited Cave Peace 7240 | -9/Scraptown | Visited Fellowship of the Rings 7313 | -9/Scraptown | Visited CPS Storage 7401 | -9/Scraptown | Visited TADAMA 7445 | -9/Scraptown | Visited The Evicted 7495 | -9/Scraptown | Visited UFD Registry 7495 | -9/Scraptown | Registered with UFD as "Electronuts" 7565 | -9/Scraptown | Visited Botcube Research 7599 | -9/Scraptown | Visited Junk Repository 7675 | -9/Scraptown | Visited Chapter 10 7715 | -9/Scraptown | Visited Junk Repository 7781 | -9/Scraptown | Visited Analyses Database 7823 | -9/Scraptown | Visited Scrapoid Pod Storage 7851 | -9/Scraptown | Visited Scrap Suit Storage 7979 | -9/Scraptown | Visited Curators Association 8007 | -9/Scraptown | Visited Abandonware Association 8039 | -9/Scraptown | Learned abandonware demo "SHUTEYE.EXE" 8039 | -9/Scraptown | Learned abandonware demo "ERRANTS.EXE" 8088 | -9/Scraptown | Visited Science Guys 8206 | -9/Scraptown | Found Lrg. Botcube 8804 | -9/Scraptown | Found Scrap Suit 9024 | -9/Scraptown | Lrg. Botcube activated 9058 | -9/Scraptown | Lrg. Botcube completed mutation into treaded form, armed with 3 guns, 1 melee weapon. 9459 | -9/Scraptown | Found Scrapoid Pod 10461 | -9/Scraptown | Met Optimus 10461 | -9/Scraptown | Accepted into 0bPrime 10548 | -9/Scraptown | Discovered new exit (range 5) 10598 | -9/Scraptown | Entered Factory 10598 | -6/Factory | Accompanied by 10 allies 10598 | -6/Factory | Evolved 6 slots: Power x1, Propulsion x1, Utility x4 10705 | -6/Factory | Lost 5 allies 10987 | -6/Factory | Build established: Scavenger-Mutant 11339 | -6/Factory | Discovered new exit (range 16) 11719 | -6/Factory | Entered Extension 11719 | -6/Extension | Accompanied by 1 ally 12367 | -6/Extension | Rescued a captive Derelict 12368 | -6/Extension | Rescued a captive Derelict 12382 | -6/Extension | Spotted B-75 Beast 12485 | -6/Extension | Destroyed B-75 Beast 12494 | -6/Extension | Spotted B-75 Beast 12536 | -6/Extension | Destroyed B-75 Beast 12565 | -6/Extension | Lost 4 parts (1p1n2u) 12694 | -6/Extension | Disrupted transfer network 12829 | -6/Extension | Scrapoid Pod released 06E05-D (x5) 12848 | -6/Extension | Rescued a captive Derelict 12918 | -6/Extension | Rescued a captive Derelict 12919 | -6/Extension | Rescued a captive Derelict 12934 | -6/Extension | Rescued a captive Derelict 13000 | -6/Extension | Rescued a captive Derelict 13506 | -6/Extension | Found Scrap Suit 13549 | -6/Extension | Lost 4 allies 13571 | -6/Extension | Rescued A7 13624 | -6/Extension | Rescued a captive Derelict 13806 | -6/Extension | Rescued a captive Derelict 13806 | -6/Extension | Rescued a captive Derelict 13827 | -6/Extension | Energy Cycler disabled 13991 | -6/Extension | Discovered new exit (range 10) 13993 | -6/Extension | Discovered new exit (range 6) 14045 | -6/Extension | Build established: Commander-Mutant 14106 | -6/Extension | Entered Cetus 14106 | -6/Cetus | Accompanied by 23 allies (A7) 14111 | -6/Cetus | Acquired a Cetus Manufacturing Module code from A7 14122 | -6/Cetus | Spotted Cetus Guard 14122 | -6/Cetus | Spotted Cetus Guard 14126 | -6/Cetus | Allies destroyed Cetus Guard 14126 | -6/Cetus | Spotted Cetus Guard 14133 | -6/Cetus | Spotted Cetus Guard 14133 | -6/Cetus | Allies destroyed Cetus Guard 14148 | -6/Cetus | Allies destroyed Cetus Guard 14156 | -6/Cetus | Allies destroyed Cetus Guard 14186 | -6/Cetus | Lost 4 allies 14264 | -6/Cetus | Started Cetus Manufacturing Module 14289 | -6/Cetus | Manufactured an Enhanced Grunt 14298 | -6/Cetus | Escorted A7 to Cetus Mainframe 14314 | -6/Cetus | Manufactured an Enhanced Grunt 14320 | -6/Cetus | Discovered new exit (range 15) 14339 | -6/Cetus | Manufactured an Enhanced Grunt 14343 | -6/Cetus | Spotted Cetus Guard 14343 | -6/Cetus | Spotted Cetus Guard 14348 | -6/Cetus | Spotted Cetus Guard 14349 | -6/Cetus | Spotted Cetus Guard 14364 | -6/Cetus | Manufactured an Enhanced Grunt 14368 | -6/Cetus | Allies destroyed Cetus Guard 14368 | -6/Cetus | Allies destroyed Cetus Guard 14374 | -6/Cetus | Found Scrap Suit 14376 | -6/Cetus | Allies destroyed Cetus Guard 14383 | -6/Cetus | Discovered new exit (range 15) 14389 | -6/Cetus | Manufactured an Enhanced Grunt 14389 | -6/Cetus | Met Revision 17 14400 | -6/Cetus | Lost 4 allies 14705 | -6/Cetus | Murdered A7 14707 | -6/Cetus | Extracted ID and sensor layout for unrecognized location from A7's data core 14749 | -6/Cetus | Entered Archives 14749 | -6/Archives | Accompanied by 19 allies 14821 | -6/Archives | Attached CPS modules to O-32 Director. 14822 | -6/Archives | Lost 4 allies 15155 | -6/Archives | Build established: Scavenger-Mutant 15211 | -6/Archives | Discovered new exit (range 16) 15278 | -6/Archives | Entered Hub_04(d) 15278 | -6/Hub_04(d) | Accompanied by 15 allies 15361 | -6/Hub_04(d) | Discovered new exit (range 5) 15448 | -6/Hub_04(d) | Lost 4 allies 15628 | -6/Hub_04(d) | First assault squad dispatched 15754 | -6/Hub_04(d) | Lost 8 allies 15767 | -6/Hub_04(d) | Adv. System Shield fried by hacking feedback 15990 | -6/Hub_04(d) | Network Hub disabled 16136 | -6/Hub_04(d) | Entered Factory 16136 | -5/Factory | Evolved 2 slots: Propulsion x2 16175 | -5/Factory | Identified exit to Upper Caves 16559 | -5/Factory | Found Prototype Processor 16570 | -5/Factory | Identified Exp. Targeting Computer 16698 | -5/Factory | Discovered new exit (range 15) 16973 | -5/Factory | Repaired Centrium Heavy Treads 17036 | -5/Factory | First assault squad dispatched 17083 | -5/Factory | Repaired Centrium Medium Armor Plating? 17952 | -5/Factory | Destroyed 7 combat bots 18426 | -5/Factory | Fabricated Cmb. Airjet (x2) 18447 | -5/Factory | Fabricated Gravmag Array (x1) 18476 | -5/Factory | Fabricated Cmb. Airjet (x2) 18662 | -5/Factory | Build established: Hacker-Mutant 18864 | -5/Factory | Crushed by falling debris 19059 | -5/Factory | System corruption reached 10% 19137 | -5/Factory | Lost 5 parts (1p2n2u) 19170 | -5/Factory | Allied Derelicts emerged from ambush trap array 19252 | -5/Factory | Build established: Scavenger-Mutant 19340 | -5/Factory | Sucked down chute 19340 | -5/Factory | Entered Waste 19345 | -5/Waste | Spotted C-40 Crusher 19345 | -5/Waste | Spotted C-40 Crusher 19349 | -5/Waste | Warlord forces began an assault 19359 | -5/Waste | Allies destroyed C-40 Crusher 19376 | -5/Waste | Spotted C-40 Crusher 19381 | -5/Waste | Allies destroyed C-40 Crusher 19384 | -5/Waste | Spotted C-40 Crusher 19390 | -5/Waste | Allies destroyed C-40 Crusher 19411 | -5/Waste | Lost 7 allies 19413 | -5/Waste | Spotted C-40 Crusher 19424 | -5/Waste | Spotted C-40 Crusher 19452 | -5/Waste | Destroyed C-40 Crusher 19457 | -5/Waste | Allies destroyed C-40 Crusher 19482 | -5/Waste | Lost 8 allies 19491 | -5/Waste | Discovered new exit (range 13) 19507 | -5/Waste | Identified exit to Factory 19525 | -5/Waste | Entered Factory 19525 | -5/Factory | Accompanied by 4 allies 19762 | -5/Factory | Lost 3 allies 19831 | -5/Factory | Central database locked down 19895 | -5/Factory | Lost 3 allies 20064 | -5/Factory | Fabricated Gui. EMP Blaster? 20196 | -5/Factory | Entered Upper Caves 20283 | -5/Upper Caves | Learned 4 Factory zone layouts 20397 | -5/Upper Caves | Build established: Mutant 20748 | -5/Upper Caves | Learned Factory trap positions 20828 | -5/Upper Caves | Discovered new exit (range 3) 20829 | -5/Upper Caves | Identified exit to Upper Caves 20863 | -5/Upper Caves | Entered another Upper Caves area 20882 | -5/Upper Caves | Discovered new exit (range 28) 21673 | -5/Upper Caves | Learned location of 1 exit from Factory 21746 | -5/Upper Caves | Encountered a Warlord checkpoint 21746 | -5/Upper Caves | Discovered new exit (range 7) 21749 | -5/Upper Caves | Identified exit to Warlord 21827 | -5/Upper Caves | Identified exit to Factory 21829 | -5/Upper Caves | Entered Factory 21829 | -4/Factory | Evolved 2 slots: Propulsion x1, Utility x1 21830 | -4/Factory | Identified exit to Research 21832 | -4/Factory | Loaded intel: 88 trap records 21838 | -4/Factory | Loaded intel: 8 recycling unit locations 21927 | -4/Factory | Learned location of Protoforge (-2) 22131 | -4/Factory | Build established: Scavenger-Mutant 22385 | -4/Factory | Discovered exit to Research (range 5) 22551 | -4/Factory | Found Prototype Processor 22551 | -4/Factory | Identified Exp. Terrain Scan Processor 22556 | -4/Factory | Found Exp. Terrain Scan Processor 22602 | -4/Factory | Central database locked down 22693 | -4/Factory | Build established: Scientist-Mutant 22890 | -4/Factory | Identified exit to Upper Caves 22890 | -4/Factory | Identified exit to Armory 22962 | -4/Factory | Entered Research 22962 | -3/Research | Evolved 2 slots: Utility x2 23023 | -3/Research | Spotted B-86 Titan 23162 | -3/Research | Revision forces began assault on 0b10 23186 | -3/Research | Found Fusion Bomb Launcher 23279 | -3/Research | Met up with Revision 17++ 23459 | -3/Research | Build established: Hacker-Mutant 23501 | -3/Research | Identified exit to Research 23501 | -3/Research | Identified exit to Testing 23544 | -3/Research | Fabricated Gui. EMP Blaster? 23640 | -3/Research | Entered another Research area 23640 | -2/Research | Accompanied by 2 allies 23640 | -2/Research | Evolved 2 slots: Propulsion x1, Utility x1 23699 | -2/Research | Loaded intel: 5 recycling unit locations 23804 | -2/Research | Unchained authorized (QV-33N) 23809 | -2/Research | Spotted B-90 Cyclops 23921 | -2/Research | Repaired Gui. EMP Blaster? 23952 | -2/Research | Identified exit to Access 24049 | -2/Research | Entered Access 24049 | -1/Access | Evolved 2 slots: Power x1, Utility x1 24071 | -1/Access | Identified exit to Surface 24221 | -1/Access | Found Prototype Launcher 24221 | -1/Access | Identified Mni. Smartbomb Launcher 24224 | -1/Access | Found Mni. Smartbomb Launcher 24245 | -1/Access | Unchained authorized (QV-33N) 24450 | -1/Access | Spotted B-99 Colossus 24681 | -1/Access | Lost 3 parts (3u) 24689 | -1/Access | Spotted B-99 Colossus 24876 | -1/Access | Lost 5 parts (3n1u1w) 24943 | *** | Escaped! Last Messages --------------- 24935_ U-05 Engineer lays Concrete. 24936_ Slug penetrates Sealed Heavy Doors. 24936_ Mic. Antimatter Reactor+ destroyed. 24936_ Slug penetrates Sealed Heavy Doors. 24937_ U-05 Engineer lays Concrete. 24938_ K-01 Serf collects debris. 24938_ U-05 Engineer lays Concrete. 24939_ Mic. Antimatter Reactor+ destroyed. 24939_ Knocked back. 24939_ Penetrated by Slug. 24939_ Slug penetrates Sealed Heavy Doors. 24940_ U-05 Engineer lays Concrete. 24941_ Acquired Imp. Antigrav System. 24941_ U-05 Engineer lays Concrete. 24942_ Slug penetrates Sealed Heavy Doors. 24942_ Mic. Antimatter Reactor+ destroyed. 24942_ Slug penetrates Sealed Heavy Doors. 24942_ K-01 Serf collects debris. 24942_ U-05 Engineer lays Concrete. Map ----- +----------------------------------------------------+ | ?????????????????????????????????????????????????? | | ?????????????????????????????????????????????????? | | ?????????????????????????????????????????????????? | | ?????????????????????? ??????????????????????? | | ?????????????????????? ????????????????????? | | ?????????????????? ? ?????????????????????? | | ??????????????????? ? ?????????????????????? | | ???????????????????"" ?????????????????????? | | ??????????????????? ?????????????????????? | | ???????????????????" ###???????????????????? | | ???????????????????# [ #??????????????????? | | ???????????????????? #??????????????????? | | ???????????????????? ???????????????????? | | ????????????????????? = ????????????????????? | | ??????????????????????[ = ?????????????????????? | | ?????????????????????? [%= ??????????????????????? | | ???????????????????????*[[???????????????????????? | | ???????????????????????"[""??????????????????????? | | ????????????????????""""[%"??????????????????????? | | ????????????????????" *[=="""????????????????????? | | ???????????????????#" ===!" ""#??????????????????? | | ???????????????????# === [[% #??????????????????? | | ???????#???????????# ==! #??????????????????? | | ??????##+#########?# %* ! #??????????????????? | | ?????? = #?# =""! #??????????????????? | | ?????? #?# !@ #??????????????????? | | ?????# #?# #??????????????????? | | ?????? #?# #?#+###???##???????? | | ?????? ### #?# ? #???????? | | ?????#?? #k ###! #???????? | | ?????# ? " #;! [*[ ## " #???????? | | ?????# """ # ;"= [% [### """ !#???????? | | ?????# """ ##; "= = = #?# """ #???????? | | ?????? " ### u=#?# " #???????? | | ??????? #?# = [#?# #????#??? | | ?????? #?# [ |#?# ????? #??? | | #####? ?? BB ==#?? ?????? #??? | | ##########+##### BB ! #####+######## #??? | | ! = [= #??? | | = [ #??? | | ##########/####################+#+#########??? | | #+####??????" ?????????## #### ! #?????? | | #???? "" #?????????###?# ] ] #?????? | | #?? """" #?????????????# ] #?????? | | # ] """" #?????????????# = #?????? | | # ? """" #?????????????# #?????? | | #????"""" #?????????????# #?????? | | #??????"" #?????????????## ##?????? | | #??????? #??????????????# #??????? | | #??????? #??????????????### ###??????? | +----------------------------------------------------+ Best States ------------- Heat Dissipation 102 Energy Generation 53 Energy Capacity 865 Matter Stores 300 Matter Capacity 300 Sight Range 16 Robot Scan Range 16 Terrain Scan Density 10 ECM Strength 1 Jamming Range 16 Cloak Strength 3 Additional Mass Support 12 Armor Coverage 1200 Phase Shifting 5 Evasion (%) 68 Target Analysis 8 Recoil Reduction 6 Force Boost 30 Offensive Hacking 36 Defensive Hacking 12 Authchip Count 2 Item Schematics ----------------- Huge Storage Unit | -10/Mines | Hacked Gravmag Array | -6/Factory | Scanalyzed Cmb. Airjet | -6/Extension | Hacked ECM Suite | -5/Factory | Hacked Gui. EMP Blaster | -5/Factory | Hacked Arm. Heavy Treads | -5/Factory | Hacked Adv. System Restoration Module | -5/Factory | Hacked Robot Schematics ------------------ L-31 Rogue | -9/Recycling | Hacked Fabricated ------------ Cmb. Airjet | x2 | -5/Factory | Authchip Gravmag Array | x1 | -5/Factory | Authchip Cmb. Airjet | x2 | -5/Factory Gui. EMP Blaster | x1 | -5/Factory | Authchip Gui. EMP Blaster | x1 | -3/Research | Authchip Repaired ---------- Lgt. Treads | 45% | -10/Materials Lgt. Treads | 56% | -10/Materials Imp. Light Cannon | 17% | -9/Storage Imp. Light Cannon | 31% | -9/Storage Lgt. Treads | 25% | -9/Storage Lgt. Armor Plating | 21% | -9/Storage Centrium Heavy Treads | 24% | -5/Factory Centrium Medium Armor Plating | 3% | -5/Factory Gui. EMP Blaster | 60% | -2/Research Studied --------- Lgt. Treads | -9/Materials | Hacked Gravmag Array | -6/Factory | Hacked Imp. Light Cannon | -6/Factory | Hacked Cmb. Airjet | -5/Factory | Hacked Hvy. Missile Launcher | -5/Factory | Hacked Lrn. Proton Cannon | -5/Factory | Hacked Lgt. Fission Core | -5/Factory | Hacked Hyp. Mass Driver | -4/Factory | Hacked Fusion Bomb Launcher | -3/Research | Hacked Mic. Antimatter Reactor | -3/Research | Hacked Alien Tech Used ----------------- None Achievements -------------- None Challenges ------------ None Game ------ Seed ThrusterLatentThrower Manual? 0 Play Time 03:46:18 Cumulative 2026.4 hours Start 2025.11.11 @ 23:57:11 End 2025.11.12 @ 12:33:58 Sessions 3 Manual Loads 0 Difficulty Rogue Special Mode None Game No. 1317 Rogue 1313 Adventurer 4 Explorer 0 Win Type 0 Total 273 Types 205/13/21/10/3/1/4/9/5/2 Lore% 98 Gallery% 96 Achievement% 85 Wizard Run 0 Options --------- Layout 2 ASCII 0 Keyboard 1 Movement Vi Keybinds 0 Fullscreen 0 Font 24/Terminus Map View 59x48 Zoom Use 0% Tactical HUD 1 Map Filters NONE Filters NONE Steam 1 RUN: b7ee3cff-0c8c-439e-a2a7-5cb009044754